bitfinex/quotes_ETHUSD_20250107
["timestamp","ask_amount","ask_price","bid_price","bid_amount"]
[1736266897684,4.01964,3482.5,3481.7,13.0105]
[1736266897866,2.87198,3482.0,3481.7,13.0105]
[1736266898071,2.87215,3481.8,3481.4,0.015]
[1736266898550,1.1481,3482.5,3481.4,0.015]
[1736266898551,2.92711107,3481.7,3481.4,0.015]
[1736266899092,2.87227,3481.6,3481.2,0.015]
[1736266899399,0.56121245,3481.9,3481.2,0.015]
[1736266899550,0.05488107,3481.5,3481.2,0.015]
[1736266899751,0.56121245,3481.9,3481.2,0.04372101]
[1736266899951,0.05488107,3481.4,3481.2,0.04372101]
[1736266900196,0.56121245,3481.9,3481.2,0.04372101]
[1736266900398,0.05488107,3481.3,3481.2,0.015]
[1736266900600,0.56121245,3481.9,3481.2,0.015]
[1736266900901,2.87227,3481.6,3481.2,0.015]
[1736266901078,0.05488107,3481.8,3481.2,0.015]
[1736266901279,2.87256,3481.3,3480.8,13.003]
[1736266901449,0.287256,3481.3,3480.8,13.003]
[1736266901655,2.87282,3480.9,3480.8,13.003]
[1736266902122,2.87281,3481.0,3480.0,0.0075]
[1736266902324,2.92773107,3480.9,3480.0,0.0362295]
[1736266902493,2.92773107,3480.9,3480.1,0.0075]
[1736266902821,2.92773107,3480.9,3480.0,0.0362295]
[1736266902822,0.40535655,3480.9,3480.0,0.0075]
[1736266903020,0.05488107,3480.9,3480.0,13.0105]
[1736266903220,2.87285,3480.9,3480.0,13.0105]
[1736266903526,0.56868685,3481.2,3480.1,0.0075]
[1736266903527,2.92760704,3480.8,3480.1,0.0075]
[1736266903693,0.05467704,3480.8,3480.1,0.015]
[1736266903897,0.56868685,3481.2,3480.1,0.04373184]
[1736266904205,0.05467704,3480.7,3480.1,0.04373184]
[1736266904620,2.87267,3481.1,3480.1,0.04373184]
[1736266904783,1.2386,3481.7,3480.6,0.015]
[1736266904980,0.58656791,3481.3,3480.6,0.015]
[1736266905183,0.58656791,3481.3,3480.6,0.04372485]
[1736266905494,3.45909791,3481.3,3480.6,0.015]
[1736266905692,0.58656791,3481.3,3480.6,0.55517479]
[1736266905927,0.05453916,3481.2,3480.8,0.015]
[1736266906226,2.87207,3481.8,3481.0,0.015]
[1736266906429,0.05487556,3481.7,3481.0,0.015]
[1736266906778,0.57382306,3481.8,3481.0,0.04372125]
[1736266907030,0.57382306,3481.8,3481.2,0.015]
[1736266907234,0.05487556,3481.7,3481.2,0.015]
[1736266907395,0.57382306,3481.8,3481.4,0.015]
[1736266907586,0.57382306,3481.8,3481.4,0.04371968]
[1736266908014,0.1578727,3482.4,3481.7,0.015]
[1736266908196,2.87192,3482.0,3481.7,0.015]
[1736266908401,2.87207,3481.8,3481.7,0.0075]
[1736266908922,2.92737558,3481.8,3481.7,0.0075]
[1736266909083,2.87227,3481.6,3481.0,0.0075]
[1736266909479,2.8721,3481.8,3481.0,0.04372382]
[1736266909680,0.05530558,3481.5,3481.0,0.04372382]
[1736266909924,2.87202,3481.9,3481.0,0.04372382]
[1736266910097,0.05513468,3481.4,3481.0,0.04372382]
[1736266910291,2.87207,3481.8,3481.0,0.04372382]
[1736266910509,0.443,3482.2,3481.0,4.3439062]
[1736266910724,0.05510711,3481.7,3481.3,0.015]
[1736266910910,0.443,3482.2,3481.3,0.0437182]
[1736266911085,0.56847366,3482.5,3481.7,0.015]
[1736266911284,0.04783314,3482.1,3481.7,0.04371603]
[1736266911485,0.443,3482.8,3481.8,0.02871626]
[1736266911709,0.443,3482.8,3481.8,0.015]
[1736266911710,2.87146,3482.6,3481.8,0.015]
[1736266911916,0.05508314,3482.7,3481.8,0.015]
[1736266912232,0.05508314,3482.6,3481.8,0.015]
[1736266912436,2.87153,3482.5,3481.6,1.1774]
[1736266912621,2.92688605,3482.4,3481.7,0.015]
[1736266912992,2.92688605,3482.4,3481.7,13.018]
[1736266913399,0.05527605,3482.4,3481.8,0.02871638]
[1736266913729,0.58584481,3482.7,3481.8,0.015]
[1736266913931,0.0554028,3482.3,3482.0,0.015]
[1736266914227,2.87118,3482.9,3482.2,0.015]
[1736266914528,0.05532014,3482.8,3482.4,0.015]
[1736266914712,0.05532014,3482.8,3482.4,0.04371115]
[1736266914903,2.87084,3483.3,3482.4,0.015]
[1736266915100,0.05532014,3482.7,3482.2,13.003]
[1736266915301,6.54938552,3483.0,3482.2,13.003]
[1736266915487,6.54938552,3483.0,3482.3,0.0075]
[1736266915694,0.05556259,3482.9,3482.3,0.0075]
[1736266916130,0.05556259,3482.9,3482.0,0.015]
[1736266916332,2.87152,3482.5,3482.0,0.04371615]
[1736266916489,2.87152,3482.5,3482.0,0.015]
[1736266916694,0.37338081,3482.8,3482.0,0.015]
[1736266916695,2.87167,3482.3,3482.0,0.015]
[1736266916921,0.0554579,3482.4,3482.0,0.015]
[1736266917234,6.54935552,3483.0,3482.0,0.04371616]
[1736266917235,0.05532014,3482.3,3482.0,0.04371616]
[1736266917401,3.67824552,3483.0,3482.0,0.04371616]
[1736266917732,2.87127,3482.8,3482.0,0.04371616]
[1736266917895,2.87126,3482.8,3482.0,0.04371616]
[1736266918090,2.87126,3482.8,3482.5,0.0075]
[1736266918294,0.05564534,3482.7,3482.5,0.0075]
[1736266918841,0.05564534,3482.6,3482.5,0.0075]
[1736266918992,2.87132,3482.8,3482.5,0.0075]
[1736266918993,2.87132,3482.8,3482.5,13.0105]
[1736266919193,0.05564534,3482.7,3482.5,13.0105]
[1736266919488,2.87132,3482.8,3482.5,13.0105]
[1736266919705,0.05564534,3482.6,3482.5,13.0105]
[1736266919916,2.87141,3482.6,3482.5,13.0105]
[1736266920118,0.55,3482.5,3481.5,13.003]
[1736266920304,3.67824552,3482.4,3481.5,13.003]
[1736266920512,2.87208,3481.8,3481.6,0.0075]
[1736266920687,2.92730534,3482.3,3481.6,0.0075]
[1736266920898,0.0558382,3481.7,3481.6,0.0075]
[1736266921129,2.87201,3481.9,3481.5,0.0075]
[1736266921338,0.0558382,3481.7,3481.5,0.015]
[1736266921536,4.58561697,3482.6,3481.5,0.04371716]
[1736266921706,3.45971697,3482.6,3481.5,2.91603716]
[1736266922035,3.45971697,3482.6,3482.0,13.003]
[1736266922036,0.05545244,3482.5,3482.0,13.003]
[1736266922235,0.05545244,3482.5,3482.2,0.015]
[1736266922532,2.87135,3482.7,3482.2,0.015]
[1736266923038,1.148,3483.0,3482.2,0.015]
[1736266923039,0.0556233,3482.6,3482.2,0.015]
[1736266923338,0.0481233,3482.6,3482.2,2.88674]
[1736266923529,0.0481233,3482.6,3482.5,4.0931]
[1736266923724,3.85066282,3484.1,3482.6,1.2066]
[1736266923725,0.1724173,3484.1,3482.6,1.2066]
[1736266923890,0.1724173,3484.1,3483.7,1.2066]
[1736266924226,0.05559371,3484.0,3483.7,1.2066]
[1736266924620,0.1724173,3484.1,3483.8,0.04370073]
[1736266925039,0.05559371,3484.0,3483.8,13.04670073]
[1736266925243,0.04809371,3484.0,3483.9,0.64423691]
[1736266925553,0.1724173,3484.1,3483.9,3.49957691]
[1736266925759,0.0891839,3485.2,3484.3,0.5949]
[1736266925903,0.0891839,3485.2,3485.0,0.5949]
[1736266926102,0.0891839,3485.2,3485.1,0.0436869]
[1736266926297,0.0891839,3485.2,3485.1,0.015]
[1736266926636,0.0891839,3485.2,3485.1,0.0075]
[1736266927039,2.9584539,3485.2,3485.1,0.0075]
[1736266927336,0.14452761,3485.2,3485.1,0.0075]
[1736266927702,3.01379761,3485.2,3485.1,0.0075]
[1736266928126,0.03952201,3485.2,3485.1,0.0075]
[1736266928342,0.05651215,3485.2,3485.1,0.0075]
[1736266928547,3.67824552,3485.5,3485.2,0.0075]
[1736266928756,4.0000194,3485.5,3485.2,0.0075]
[1736266929053,4.0000194,3485.5,3484.4,13.003]
[1736266929054,1.2207,3485.3,3484.4,13.003]
[1736266929214,2.8696,3484.9,3484.4,13.003]
[1736266929414,2.86967,3484.8,3484.4,13.003]
[1736266929649,2.86969,3484.7,3484.4,13.003]
[1736266929853,2.86985,3484.5,3484.4,13.003]
[1736266930053,2.86993,3484.4,3483.5,13.003]
[1736266930238,2.87012,3484.2,3483.7,0.0075]
[1736266930423,5.34094552,3484.5,3483.7,0.0075]
[1736266930623,1.395,3484.6,3483.7,0.03620216]
[1736266930827,0.442,3485.1,3483.8,1.1823]
[1736266931025,0.05773454,3485.0,3484.2,13.003]
[1736266931243,2.87001,3484.3,3484.2,13.003]
[1736266931412,2.87001,3484.3,3484.2,12.469153]
[1736266931754,2.92774454,3484.3,3484.2,12.469153]
[1736266931957,4.42532255,3484.3,3484.2,12.476653]
[1736266932153,2.87036,3483.9,3483.2,13.003]
[1736266932356,2.87084,3483.3,3483.2,13.003]
[1736266932750,3.47857454,3483.3,3483.2,13.003]
[1736266933150,3.421,3483.1,3483.0,1.19596286]
[1736266933458,1.45273454,3483.3,3482.1,14.19896286]
[1736266933665,2.87108,3483.0,3482.1,14.19896286]
[1736266933866,0.05773454,3483.2,3482.2,4.07120344]
[1736266934063,6.54834552,3484.2,3482.9,13.003]
[1736266934357,6.54834552,3484.2,3483.0,0.0075]
[1736266934358,0.55,3484.0,3483.0,0.0075]
[1736266934659,2.87092,3483.2,3483.0,0.0075]
[1736266934834,1.2551,3483.5,3483.0,0.0075]
[1736266935031,2.871,3483.1,3482.5,13.003]
[1736266935232,0.05773454,3483.4,3482.6,1.2448]
[1736266935448,2.87085,3483.3,3482.7,0.0075]
[1736266935650,1.72849833,3483.9,3482.7,0.0075]
[1736266935651,2.92665429,3483.2,3482.7,0.0075]
[1736266935870,2.87101,3483.1,3482.5,13.003]
[1736266936049,0.04821429,3483.2,3482.6,0.03621337]
[1736266936222,1.1735,3484.9,3483.2,0.015]
[1736266936419,0.3153387,3484.9,3484.0,0.0075]
[1736266936662,0.442,3485.2,3484.0,0.0075]
[1736266937021,3.31129,3485.2,3484.3,0.0075]
[1736266937226,0.57645449,3485.0,3484.3,0.0075]
[1736266937651,1.1735,3485.3,3484.3,0.03619764]
[1736266937851,0.27,3516.1,3484.4,1.70627676]
[1736266937852,1.1735,3485.7,3484.4,1.70627676]
[1736266938056,2.86896,3485.6,3484.6,13.003]
[1736266938377,1.1735,3485.7,3484.8,0.0075]
[1736266938725,4.04237,3485.7,3484.8,0.0075]
[1736266939358,4.04237,3485.7,3484.7,0.02869287]
[1736266939359,0.56675022,3485.5,3484.6,13.003]
[1736266939779,2.86928,3485.2,3484.7,0.0075]
[1736266939979,2.86936,3485.1,3484.7,0.0075]
[1736266940367,2.86941,3485.1,3484.1,13.003]
[1736266940693,2.86941,3485.1,3484.2,1.18209754]
[1736266940896,0.55,3485.4,3484.2,1.1572]
[1736266941195,0.55,3485.4,3482.7,5.87206577]
[1736266941196,2.86968,3484.8,3483.8,14.1602]
[1736266941372,2.86968,3484.8,3484.0,0.0075]
[1736266941792,0.57628412,3484.9,3484.0,0.0075]
[1736266942093,2.86928,3485.2,3484.2,0.0075]
[1736266942296,0.56847321,3485.0,3484.2,0.03619819]
[1736266942456,2.86985,3484.5,3484.2,0.0075]
[1736266942655,4.13193,3484.7,3484.2,0.0075]
[1736266942850,0.55,3484.6,3484.2,0.0075]
[1736266943051,3.41981,3484.6,3483.2,13.003]
[1736266943297,2.87034,3484.0,3483.3,0.0075]
[1736266943603,2.87018,3484.1,3483.3,0.03620514]
[1736266943796,0.05596533,3483.9,3483.3,0.0075]
[1736266944105,0.05596533,3483.9,3482.9,1.1427]
[1736266944106,0.58013214,3484.0,3483.1,0.0075]
[1736266944399,2.92642083,3483.8,3483.1,0.0075]
[1736266944696,0.58013214,3484.0,3483.1,0.0075]
[1736266944697,0.05572861,3483.7,3483.1,0.0075]
[1736266945057,0.58013214,3484.0,3482.9,1.1427]
[1736266945258,4.05552,3483.8,3482.9,1.1427]
[1736266945499,0.0559214,3483.7,3483.0,0.0075]
[1736266945868,0.0559214,3483.7,3483.0,0.03620763]
[1736266946094,2.9264314,3483.7,3483.0,0.03620763]
[1736266946295,2.9264314,3483.7,3483.0,1.45439839]
[1736266946608,0.0559214,3483.7,3483.0,1.42569076]
[1736266946785,0.0559214,3483.7,3483.0,1.4543984]
[1736266946967,3.30919,3484.1,3483.1,13.003]
[1736266947183,0.04669416,3483.6,3483.2,0.015]
[1736266947390,0.439,3484.1,3483.4,0.0075]
[1736266947612,2.87042,3483.9,3483.4,0.0075]
[1736266947913,0.05394416,3483.8,3483.2,0.0075]
[1736266948114,0.439,3484.1,3483.2,0.03620615]
[1736266948300,0.05413137,3483.7,3483.2,0.74120376]
[1736266948500,0.439,3484.1,3483.2,0.71249761]
[1736266948811,0.439,3484.1,3482.9,4.1427]
[1736266948812,0.0075,3483.8,3483.0,0.0075]
[1736266949215,2.87049,3483.8,3483.0,0.0362065]
[1736266949524,2.87049,3483.8,3482.8,13.003]
[1736266949525,0.0075,3483.5,3482.8,13.003]
[1736266949725,0.0075,3483.5,3482.9,0.0075]
[1736266949894,0.0075,3483.5,3482.9,0.03621036]
[1736266950094,0.05413137,3483.4,3482.9,1.6272644]
[1736266950319,0.0075,3483.3,3482.7,13.003]
[1736266950516,0.06163137,3483.3,3482.7,13.003]
[1736266950718,0.06163137,3483.3,3482.8,0.03620923]
[1736266951321,0.0075,3483.6,3482.7,0.0075]
[1736266951616,0.0075,3483.6,3482.7,0.03620693]
[1736266951777,0.0075,3483.4,3482.9,0.0075]
[1736266952220,0.0075,3483.4,3482.9,0.0362076]
[1736266952420,0.05388909,3483.3,3482.9,0.0362076]
[1736266952774,0.58141605,3483.9,3482.9,2.9073576]
[1736266952982,0.05395518,3483.2,3483.1,14.207]
[1736266953307,0.58141605,3483.9,3483.1,14.207]
[1736266953308,2.87035,3483.9,3483.1,14.207]
[1736266953491,0.05395518,3483.2,3483.1,14.207]
[1736266953695,3.23182089,3484.0,3483.1,13.0105]
[1736266953696,0.0075,3483.7,3483.1,13.0105]
[1736266953882,0.0539717,3483.2,3483.1,13.0105]
[1736266954220,3.23182089,3483.2,3482.4,0.0075]
[1736266954380,0.0075,3482.7,3482.4,0.0075]
[1736266954588,0.0075,3482.7,3481.8,1.78833514]
[1736266954589,2.87199,3481.9,3481.5,0.94829401]
[1736266954792,2.87199,3481.9,3481.0,3.57667028]
[1736266954793,2.87265,3481.1,3481.0,3.57667028]
[1736266954994,6.55097089,3481.1,3481.0,3.57667028]
[1736266955322,6.60454052,3481.1,3481.0,3.57667028]
[1736266955710,7.15454052,3481.1,3481.0,3.57667028]
[1736266956030,2.8729,3480.8,3480.7,4.172782]
[1736266956216,2.8729,3480.8,3479.6,1.1603]
[1736266956217,0.0075,3480.7,3479.6,1.1603]
[1736266956419,0.04341783,3480.7,3479.7,0.02873426]
[1736266956594,0.0075,3480.7,3479.8,1.2808]
[1736266956797,0.0075,3480.5,3480.0,0.0075]
[1736266957219,0.04341774,3480.5,3480.0,0.0075]
[1736266957432,0.04341774,3480.5,3479.8,1.2658]
[1736266957433,0.0075,3480.3,3479.8,1.2658]
[1736266957601,2.87339,3480.2,3479.1,1.2658]
[1736266957803,0.03592075,3480.1,3479.1,4.2658]
[1736266957998,0.0075,3480.0,3479.2,0.721517]
[1736266958200,0.0075,3480.0,3479.5,0.0075]
[1736266958471,0.05022361,3479.9,3479.8,4.0316]
[1736266958695,0.0075,3479.9,3479.8,7.0316]
[1736266959289,0.0075,3479.9,3479.8,7.0391]
[1736266959485,1.16991494,3481.7,3480.3,2.87326]
[1736266959738,0.04997361,3481.6,3480.5,0.015]
[1736266959883,0.04997361,3481.6,3480.7,0.015]
[1736266960086,0.04247361,3481.6,3480.8,1.1784]
[1736266960285,0.04247361,3481.6,3481.4,1.1784]
[1736266960533,1.20581517,3482.2,3481.4,1.1784]
[1736266960733,0.0075,3482.1,3481.6,0.0075]
[1736266961221,0.0075,3482.3,3481.5,0.0075]
[1736266961432,0.0075,3482.3,3481.7,0.0075]
[1736266961754,0.0075,3482.4,3481.7,0.0075]
[1736266962353,0.0075,3482.4,3481.6,0.0075]
[1736266962505,0.04339648,3482.4,3481.6,0.03621859]
[1736266962891,0.04339648,3482.4,3481.5,0.0075]
[1736266963100,0.0075,3482.1,3481.5,0.0075]
[1736266963533,0.03589648,3482.4,3481.5,0.0075]
[1736266963698,0.0075,3482.3,3481.5,0.0075]
[1736266963886,0.0075,3482.3,3481.0,1.1465]
[1736266964088,0.0075,3481.8,3481.0,1.1465]
[1736266964316,0.0075,3481.8,3481.1,0.0075]
[1736266964520,2.90755648,3482.4,3481.1,0.0075]
[1736266964521,0.0075,3481.9,3481.1,0.0075]
[1736266965548,2.87138,3482.7,3481.1,0.43890784]
[1736266965699,2.87175,3482.2,3481.1,2.90883184]
[1736266965894,0.58363856,3482.3,3481.4,0.0075]
[1736266966305,0.0075,3482.2,3481.4,0.0075]
[1736266966638,0.0075,3481.7,3481.0,1.1465]
[1736266966846,0.0075,3481.6,3480.1,1.2296]
[1736266967026,0.0075,3481.6,3480.1,1.4516902]
[1736266967027,2.87272,3481.1,3480.1,1.4516902]
[1736266967339,0.03591213,3481.0,3480.1,1.4516902]
[1736266967542,0.0075,3480.9,3480.2,0.0075]
[1736266967845,0.0573698,3480.9,3480.2,0.0075]
[1736266968509,0.0573698,3480.9,3480.5,0.0075]
[1736266968697,0.0573698,3480.9,3480.5,0.0362259]
[1736266968899,0.0573698,3480.9,3480.5,0.0075]
[1736266969136,0.0573698,3480.9,3480.3,0.0075]
[1736266969637,0.0573698,3480.9,3480.1,4.3251002]
[1736266969943,0.0573698,3480.9,3480.1,1.2296]
[1736266970439,0.09328216,3480.9,3480.2,0.0075]
[1736266970648,0.09328217,3480.9,3480.2,0.0075]
[1736266970810,0.0573698,3480.9,3480.2,0.03622989]
[1736266971012,0.0573698,3480.9,3480.2,0.0075]
[1736266971495,0.0573698,3480.9,3480.2,0.0362299]
[1736266971700,0.0573698,3480.9,3480.2,0.42143899]
[1736266971900,2.8716,3482.4,3480.2,0.42143899]
[1736266971901,0.03590728,3481.7,3480.2,0.03622801]
[1736266972101,0.0075,3481.4,3480.3,0.0075]
[1736266972400,0.0075,3481.3,3480.5,0.0075]
[1736266972610,0.0573698,3481.3,3480.5,0.03622695]
[1736266972941,0.0573698,3481.3,3480.5,0.0075]
[1736266973111,0.0573698,3481.3,3480.5,0.418591]
[1736266973479,0.0573698,3481.3,3480.7,0.0075]
[1736266973801,0.0573698,3481.3,3481.2,7.11027]
[1736266973802,0.0423698,3481.3,3481.2,7.11027]
[1736266974001,0.0423698,3481.3,3481.2,7.11777]
[1736266974318,0.58368466,3482.7,3481.7,2.87963]
[1736266974531,1.34302145,3482.7,3481.9,0.0075]
[1736266974841,0.0075,3482.6,3481.9,0.0075]
[1736266975053,0.0075,3482.6,3481.8,0.0075]
[1736266975546,0.0075,3482.7,3482.0,0.0075]
[1736266975701,0.0075,3482.7,3482.0,0.03621495]
[1736266976413,0.0075,3482.8,3482.0,0.03621495]
[1736266976614,2.87133,3482.7,3481.5,1.2521]
[1736266976827,0.0075,3482.5,3481.5,1.2521]
[1736266977045,0.0075,3482.2,3481.6,0.0075]
[1736266977279,2.91513753,3482.2,3481.6,0.0075]
[1736266977476,0.04339753,3482.2,3481.6,0.0075]
[1736266977773,0.0075,3482.1,3481.5,1.2521]
[1736266977933,0.33491647,3482.1,3480.7,1.2557]
[1736266978281,0.0075,3482.0,3480.8,2.87283]
[1736266978428,0.0075,3482.0,3480.7,1.2557]
[1736266978634,0.0075,3481.9,3480.8,2.87286]
[1736266978856,0.0075,3481.7,3480.8,2.87286]
[1736266979177,0.04340426,3481.7,3480.8,3.285716]
[1736266979680,2.8795,3481.9,3481.0,0.0075]
[1736266979835,0.0075,3481.7,3481.0,0.0075]
[1736266980035,0.0075,3481.7,3480.9,2.90151339]
[1736266980250,0.0075,3481.7,3481.1,0.0075]
[1736266980433,0.0075,3482.1,3481.1,0.0362221]
[1736266980670,0.0075,3482.1,3481.4,0.0075]
[1736266981019,0.0075,3482.1,3481.5,0.9872]
[1736266981273,0.0075,3482.1,3481.6,0.0075]
[1736266981473,0.0075,3481.9,3481.6,0.0075]
[1736266981678,0.0075,3481.9,3480.9,0.9872]
[1736266981679,0.0075,3481.9,3481.1,0.02872007]
[1736266981887,0.04724499,3481.8,3480.9,0.9872]
[1736266982089,0.0075,3481.5,3480.9,0.9872]
[1736266982381,0.0075,3481.5,3481.1,0.0075]
[1736266982611,3.94327,3481.2,3481.1,0.0075]
[1736266982875,3.94327,3481.2,3480.0,1.0164]
[1736266982876,0.0075,3481.1,3480.2,2.88087]
[1736266983082,0.0075,3481.1,3479.5,2.0]
[1736266983083,0.0075,3481.1,3480.3,0.02872594]
[1736266983238,0.04688045,3481.0,3480.4,1.0633]
[1736266983433,2.8724,3481.4,3480.5,0.02872572]
[1736266983644,0.0075,3480.8,3480.6,0.0075]
[1736266984052,0.0075,3481.4,3480.6,0.0075]
[1736266984261,0.05438045,3480.7,3480.6,0.0075]
[1736266984535,0.0075,3480.7,3480.6,0.0075]
[1736266985452,0.0075,3480.6,3480.3,2.8808]
[1736266985647,0.0075,3480.6,3480.5,0.0075]
[1736266985878,0.0075,3481.2,3480.5,0.0075]
[1736266986186,0.0075,3481.0,3480.3,0.0075]
[1736266987174,0.0075,3480.8,3480.3,0.0075]
[1736266987551,2.87256,3481.3,3480.3,0.0075]
[1736266987552,0.0075,3481.2,3480.3,0.0075]
[1736266987873,0.0075,3480.6,3480.3,0.0075]
[1736266988075,0.0075,3480.6,3480.4,0.0075]
[1736266988374,0.0075,3481.0,3480.6,0.0075]
[1736266988588,0.15178,3481.0,3480.6,0.0075]
[1736266988956,0.0075,3480.8,3480.3,0.0075]
[1736266989368,0.0075,3480.8,3480.5,0.0075]
[1736266989565,2.88008,3481.2,3480.5,0.03622608]
[1736266989796,2.87306,3480.6,3480.5,0.0075]
[1736266989999,0.0075,3480.1,3478.2,1.0499]
[1736266990159,2.87431,3479.1,3478.7,0.02874568]
[1736266990359,0.0075,3479.5,3478.7,0.02874568]
[1736266990612,0.0075,3479.1,3478.3,0.02874278]
[1736266990814,0.0075,3478.9,3478.2,1.0499]
[1736266990972,0.0075,3478.9,3478.7,0.0075]
[1736266991309,2.87433,3479.1,3478.7,0.0075]
[1736266991310,0.0075,3479.0,3478.7,0.0075]
[1736266992000,6.11318223,3480.8,3479.1,0.0075]
[1736266992311,2.87306,3480.7,3479.5,2.87393]
[1736266992522,2.87306,3480.7,3479.6,0.03623252]
[1736266992666,0.02979265,3480.6,3479.6,0.0075]
[1736266993001,0.0075,3480.5,3480.0,2.87356]
[1736266993199,0.0075,3480.5,3480.1,0.287356]
[1736266993501,0.58259089,3480.8,3479.5,0.987]
[1736266993699,0.02979265,3480.7,3479.5,0.987]
[1736266993907,0.02979265,3480.7,3479.7,0.0075]
[1736266994099,2.87333,3480.3,3479.7,0.0075]
[1736266994270,2.88063,3480.6,3479.7,0.03623366]
[1736266994473,0.0075,3480.4,3479.7,0.03623366]
[1736266994673,0.0075,3480.4,3479.7,0.39721937]
[1736266995069,0.57509089,3480.8,3479.6,0.0075]
[1736266995409,0.57509089,3480.8,3479.5,0.987]
[1736266995410,0.0075,3480.7,3479.9,0.0075]
[1736266995718,2.87293,3480.8,3479.9,0.0075]
[1736266995719,0.9765,3481.0,3479.9,0.03623063]
[1736266995873,1.16991494,3481.2,3480.2,0.0075]
[1736266996099,0.0075,3481.1,3480.3,3.0075]
[1736266996304,0.02979265,3481.1,3480.3,0.700111]
[1736266996524,0.02979265,3481.1,3480.3,0.0075]
[1736266996731,0.02979265,3481.1,3480.1,0.0075]
[1736266996935,0.02979265,3481.1,3480.3,0.0075]
[1736266997256,2.90245265,3481.1,3480.3,0.0075]
[1736266997744,0.02979265,3481.1,3480.3,0.02872827]
[1736266998042,2.87259,3481.2,3480.4,0.0075]
[1736266998539,2.87274,3481.0,3480.4,0.0075]
[1736266998734,0.02979265,3481.4,3480.4,0.0075]
[1736266998899,2.8726,3481.2,3480.2,0.03622934]
[1736266999101,2.90239265,3481.2,3480.2,0.03622934]
[1736266999499,0.485162,3481.3,3480.2,0.03622934]
[1736266999701,0.02979265,3481.3,3480.4,0.0075]
[1736266999925,0.57952086,3481.5,3480.9,0.0075]
[1736267000259,1.16991494,3481.8,3481.1,0.0075]
[1736267000419,1.16991494,3481.8,3481.1,0.03622274]
[1736267000621,0.56621624,3481.6,3481.1,0.0075]
[1736267001130,0.56621624,3481.6,3481.1,2.88014]
[1736267001337,1.16991494,3482.1,3481.3,0.0075]
[1736267001543,4.04166494,3482.2,3481.7,0.0075]
[1736267001759,2.87207,3481.8,3481.7,0.0075]
[1736267001957,2.90186265,3481.8,3481.7,0.0075]
[1736267002231,2.90186265,3481.8,3481.1,0.0075]
[1736267002537,2.87228,3481.6,3481.1,0.0075]
[1736267002743,0.02979265,3481.5,3480.7,0.0075]
[1736267002943,2.90187265,3481.8,3480.9,0.0075]
[1736267003139,0.57547584,3481.9,3480.9,0.03622434]
[1736267003342,3.44754584,3481.9,3480.9,0.0075]
[1736267003645,2.93597483,3481.8,3481.0,0.0075]
[1736267003849,0.06387483,3481.8,3481.0,0.0075]
[1736267004059,0.35114207,3481.7,3480.7,0.0075]
[1736267004384,0.02979265,3481.6,3480.7,0.0075]
[1736267004592,2.87248,3481.4,3480.7,0.0075]
[1736267004774,2.87257,3481.2,3480.7,0.0075]
[1736267004977,2.87275,3481.0,3480.1,0.9712]
[1736267005284,2.87292,3480.8,3480.2,0.0075]
[1736267005495,2.87302,3480.7,3480.2,0.0075]
[1736267005686,0.02979265,3480.6,3480.2,0.0075]
[1736267005832,0.06365377,3480.7,3479.8,2.87369]
[1736267006031,0.03355708,3480.5,3479.9,0.0075]
[1736267006232,0.02979265,3480.7,3479.9,0.396019]
[1736267006468,0.03355708,3480.4,3479.9,0.396019]
[1736267006674,4.420332,3480.8,3479.8,0.0075]
[1736267006870,0.03355708,3480.3,3480.0,0.0075]
[1736267007085,4.420332,3480.8,3480.0,0.0075]
[1736267007292,0.03355708,3480.2,3480.0,0.0075]
[1736267007504,4.420332,3480.8,3480.0,0.0075]
[1736267007643,0.03355708,3480.1,3480.0,0.0075]
[1736267007840,2.87315,3480.5,3479.8,0.0075]
[1736267008171,0.02979265,3480.7,3479.8,0.0075]
[1736267008172,0.32385135,3480.4,3479.8,0.0075]
[1736267008371,0.03355708,3480.4,3479.8,0.0075]
[1736267008589,0.02979265,3480.7,3479.8,0.0075]
[1736267008875,0.03351838,3480.3,3479.8,0.0075]
[1736267009050,1.16991494,3481.2,3479.9,0.0075]
[1736267009374,1.16991494,3481.2,3480.6,3.0075]
[1736267009576,1.16991494,3481.2,3480.6,0.0075]
[1736267010073,0.02229265,3481.1,3480.4,0.03622689]
[1736267010254,1.16991494,3481.2,3480.6,2.87299]
[1736267010457,2.89456265,3481.6,3480.7,0.0362247]
[1736267010796,0.57952013,3481.4,3480.9,0.9885]
[1736267010997,1.16991494,3482.0,3481.1,2.87259]
[1736267011144,1.19220759,3482.0,3481.1,2.87259]
[1736267011344,3.81402864,3482.0,3481.2,0.0075]
[1736267011755,0.94204864,3482.0,3481.2,0.0075]
[1736267012275,1.52760663,3482.0,3480.9,0.981]
[1736267012495,0.60785064,3482.0,3480.5,1.0698]
[1736267012700,2.87243,3481.4,3480.6,0.0075]
[1736267012860,0.02229265,3481.3,3480.6,0.0075]
[1736267013037,1.02379265,3481.3,3480.6,0.0075]
[1736267013439,1.02379265,3481.3,3480.2,0.0075]
[1736267013440,2.87274,3481.0,3480.2,0.0075]
[1736267013965,0.02229265,3480.9,3480.2,0.0075]
[1736267014279,2.87274,3481.0,3480.2,3.0075]
[1736267014467,0.02229265,3480.9,3480.2,3.696277]
[1736267014669,2.89487265,3481.2,3480.2,0.696277]
[1736267014874,2.89487265,3481.2,3480.2,3.696277]
[1736267015082,2.90531646,3481.1,3480.2,3.696277]
[1736267015278,2.87282,3480.9,3480.2,3.0075]
[1736267015596,2.87315,3480.5,3479.7,1.0206]
[1736267015770,2.89553265,3480.4,3479.8,0.0075]
[1736267015956,2.92799458,3480.4,3479.8,0.0075]
[1736267016161,0.05475458,3480.4,3479.8,0.0075]
[1736267016562,2.92798458,3480.4,3479.8,0.0075]
[1736267016891,0.05475458,3480.4,3479.8,0.0075]
[1736267017097,0.03246193,3480.4,3479.8,0.0075]
[1736267018059,0.02229265,3480.5,3479.8,0.0075]